bitfinex/quotes_BTCUSD_20240719
["timestamp","ask_amount","ask_price","bid_price","bid_amount"]
[1721414752072,0.30168392,66682.0,66671.0,0.00078845]
[1721414752229,0.12240105,66681.0,66680.0,0.008]
[1721414752888,0.12240105,66681.0,66671.0,0.00078845]
[1721414753081,0.09850705,66680.0,66672.0,0.12457553]
[1721414753243,0.02240105,66679.0,66671.0,0.00078845]
[1721414753457,0.01960705,66678.0,66671.0,0.00078845]
[1721414753653,0.002794,66677.0,66671.0,0.00078845]
[1721414753854,0.01960705,66676.0,66671.0,0.00078845]
[1721414754054,0.002794,66675.0,66671.0,0.00078845]
[1721414754253,0.01960705,66674.0,66671.0,0.00078845]
[1721414754527,0.1471,66672.0,66671.0,0.00078845]
[1721414754723,0.16670705,66672.0,66671.0,0.00078845]
[1721414754930,0.1471,66672.0,66671.0,0.00378845]
[1721414755130,0.16665113,66672.0,66671.0,0.00378845]
[1721414756144,0.16665113,66672.0,66671.0,0.00078845]
[1721414756484,0.16665113,66672.0,66671.0,0.00778845]
[1721414756678,0.16665113,66672.0,66671.0,0.00078845]
[1721414756892,0.16665113,66672.0,66671.0,0.00778845]
[1721414757197,0.16865113,66672.0,66671.0,0.01678845]
[1721414757578,0.16765113,66672.0,66671.0,0.00978845]
[1721414757777,0.16765113,66672.0,66671.0,0.01178845]
[1721414757953,0.16665113,66672.0,66671.0,0.00278845]
[1721414758153,0.1471,66672.0,66671.0,0.00278845]
[1721414758322,0.16663983,66672.0,66671.0,0.00278845]
[1721414758730,0.16663973,66672.0,66671.0,0.00278845]
[1721414759588,0.16663973,66672.0,66671.0,0.00678845]
[1721414761088,0.16659865,66672.0,66671.0,0.00678845]
[1721414762423,0.33352591,66672.0,66671.0,0.00678845]
[1721414762584,0.41658665,66672.0,66671.0,0.00678845]
[1721414762767,0.57096839,66672.0,66671.0,0.00678845]
[1721414762968,1.19392039,66672.0,66671.0,0.00678845]
[1721414763238,0.89394439,66672.0,66671.0,0.00678845]
[1721414763588,0.89394439,66672.0,66671.0,0.00478845]
[1721414763790,0.89394439,66672.0,66671.0,0.00078845]
[1721414763791,0.87544574,66672.0,66671.0,0.00078845]
[1721414764008,0.59489205,66672.0,66671.0,0.00078845]
[1721414764312,0.44490405,66672.0,66671.0,0.00178845]
[1721414764520,0.12042231,66672.0,66671.0,0.00178845]
[1721414764911,0.001,66672.0,66671.0,0.00178845]
[1721414765147,0.001,66672.0,66671.0,0.24068791]
[1721414765349,0.001,66672.0,66671.0,0.36525543]
[1721414765727,0.001,66672.0,66671.0,0.81292771]
[1721414765927,0.00084,66686.0,66677.0,0.149975]
[1721414766176,0.00084,66686.0,66685.0,0.22347479]
[1721414767131,0.00084,66686.0,66685.0,0.37785653]
[1721414768184,0.00084,66686.0,66685.0,0.39085653]
[1721414769022,0.00084,66686.0,66685.0,0.90125132]
[1721414769443,0.00084,66686.0,66685.0,0.88825132]
[1721414769790,0.00084,66686.0,66685.0,0.90225132]
[1721414770077,0.00084,66686.0,66685.0,0.88825132]
[1721414770278,0.00084,66686.0,66685.0,0.88824569]
[1721414770478,0.00084,66686.0,66685.0,0.63875653]
[1721414770479,0.00184,66686.0,66685.0,0.63875653]
[1721414770681,0.00184,66686.0,66685.0,0.62475653]
[1721414770884,0.00084,66686.0,66685.0,0.61375653]
[1721414771113,0.00084,66686.0,66685.0,0.62775653]
[1721414771296,0.00084,66686.0,66685.0,0.62675653]
[1721414771297,0.00184,66686.0,66685.0,0.62675653]
[1721414771499,0.00184,66686.0,66685.0,0.77671453]
[1721414772856,0.00184,66686.0,66685.0,0.79071453]
[1721414773671,0.00184,66686.0,66685.0,0.91524664]
[1721414774225,0.00184,66686.0,66685.0,0.79071453]
[1721414774480,0.00184,66686.0,66685.0,0.91524687]
[1721414774604,0.00184,66686.0,66685.0,0.79071453]
[1721414774806,0.00184,66686.0,66685.0,0.91524687]
[1721414775215,0.00184,66686.0,66685.0,0.79071453]
[1721414776480,0.00184,66686.0,66685.0,0.64075653]
[1721414781260,0.00184,66686.0,66685.0,0.56358174]
[1721414781481,0.00184,66686.0,66685.0,0.32768174]
[1721414782957,0.00184,66686.0,66685.0,0.32754649]
[1721414783388,0.00184,66686.0,66685.0,0.40472128]
[1721414784181,0.00184,66686.0,66685.0,0.5292474]
[1721414784837,0.00184,66686.0,66685.0,0.52924757]
[1721414785762,0.00184,66686.0,66685.0,0.40472128]
[1721414787374,0.00184,66686.0,66685.0,0.67920577]
[1721414787597,0.00184,66686.0,66685.0,0.97912277]
[1721414788801,0.00184,66686.0,66685.0,1.27903977]
[1721414789972,0.00184,66686.0,66685.0,1.15451328]
[1721414790168,0.00184,66686.0,66685.0,1.27903771]
[1721414791568,0.00184,66686.0,66685.0,1.52903771]
[1721414792553,0.00184,66686.0,66685.0,1.22912071]
[1721414793442,0.00184,66686.0,66685.0,1.22912347]
[1721414794815,0.00184,66686.0,66685.0,1.83383168]
[1721414795043,0.00084,66697.0,66696.0,0.99617]
[1721414795217,0.00084,66697.0,66696.0,2.07479685]
[1721414795590,0.00084,66697.0,66696.0,2.32479685]
[1721414796204,0.00084,66697.0,66696.0,2.62466485]
[1721414796421,0.00084,66697.0,66696.0,2.64766485]
[1721414796619,0.00084,66697.0,66696.0,2.46084911]
[1721414796820,0.00184,66697.0,66696.0,2.6745744]
[1721414797079,0.00184,66697.0,66696.0,2.36336253]
[1721414797206,0.00837,66700.0,66699.0,1.149489]
[1721414797401,0.00837,66700.0,66699.0,1.78417891]
[1721414797606,0.00837,66700.0,66699.0,1.73417891]
[1721414797880,0.00837,66700.0,66699.0,2.08403291]
[1721414798604,0.00837,66700.0,66699.0,2.33403291]
[1721414799339,0.00837,66700.0,66699.0,2.34803291]
[1721414799750,0.00837,66700.0,66699.0,2.36202764]
[1721414799950,0.00837,66700.0,66699.0,2.34802764]
[1721414800314,0.00837,66700.0,66699.0,2.33402764]
[1721414800532,0.00837,66700.0,66699.0,2.34802764]
[1721414801256,0.00837,66700.0,66699.0,2.36202764]
[1721414801659,0.00837,66700.0,66699.0,2.59792764]
[1721414801862,0.00837,66700.0,66699.0,2.58392764]
[1721414802061,0.00837,66700.0,66699.0,2.59792764]
[1721414802563,0.00837,66700.0,66699.0,2.58392764]
[1721414802797,0.00837,66700.0,66699.0,2.56992764]
[1721414803018,0.00837,66700.0,66699.0,2.58392764]
[1721414803220,0.00837,66700.0,66699.0,2.59792764]
[1721414803456,0.00837,66700.0,66699.0,2.53392764]
[1721414803632,0.00837,66700.0,66699.0,2.58392764]
[1721414803808,0.00837,66700.0,66699.0,2.59792764]
[1721414804226,0.00836,66718.0,66711.0,0.149898]
[1721414804480,0.00836,66718.0,66713.0,0.2359]
[1721414804481,0.46304871,66717.0,66713.0,0.2359]
[1721414804672,0.00836,66718.0,66714.0,0.2788629]
[1721414804885,0.00836,66718.0,66715.0,0.12448116]
[1721414805095,0.00836,66718.0,66716.0,0.2788629]
[1721414805353,0.00836,66718.0,66717.0,0.12448116]
[1721414805473,0.00836,66718.0,66717.0,0.2788629]
[1721414806637,0.00836,66718.0,66717.0,0.52886241]
[1721414806873,0.00836,66718.0,66717.0,0.54286241]
[1721414807139,0.00836,66718.0,66717.0,1.1251432]
[1721414807381,0.00836,66718.0,66717.0,1.40690685]
[1721414807628,0.00836,66718.0,66717.0,1.74367985]
[1721414807861,0.00836,66724.0,66723.0,1.286911]
[1721414808084,0.00836,66724.0,66723.0,2.06553364]
[1721414808323,0.002,66729.0,66723.0,2.06553364]
[1721414808324,0.002,66729.0,66728.0,0.84931]
[1721414808557,0.002,66729.0,66728.0,1.6764816]
[1721414808779,0.002,66729.0,66728.0,1.79086031]
[1721414809469,0.002,66729.0,66728.0,2.05477313]
[1721414809700,0.002,66729.0,66728.0,0.88283938]
[1721414809936,0.002,66729.0,66728.0,0.264]
[1721414810162,0.002,66729.0,66728.0,0.40244334]
[1721414810659,0.002,66729.0,66728.0,0.15244334]
[1721414812768,0.002,66729.0,66728.0,0.30682997]
[1721414813660,0.002,66729.0,66728.0,0.15244823]
[1721414814567,0.00210025,66729.0,66728.0,0.15244823]
[1721414814980,0.29675925,66729.0,66728.0,0.028]
[1721414815185,0.14690025,66729.0,66728.0,0.028]
[1721414815406,0.24690025,66729.0,66728.0,0.028]
[1721414815924,0.00010025,66722.0,66713.0,0.20470927]
[1721414816137,0.00010025,66726.0,66719.0,0.07717479]
[1721414816358,0.00010025,66726.0,66720.0,0.12446797]
[1721414816618,0.00010025,66726.0,66721.0,0.12446797]
[1721414816836,0.00010025,66723.0,66722.0,0.12446797]
[1721414817698,0.07660025,66723.0,66722.0,0.12446797]
[1721414817931,0.13710025,66723.0,66707.0,0.0180075]
[1721414818091,0.13710025,66723.0,66708.0,0.2788652]
[1721414818092,0.00010025,66710.0,66708.0,0.2788652]
[1721414818371,0.00010025,66710.0,66709.0,0.12448346]
[1721414818572,0.102794,66722.0,66709.0,0.2788652]
[1721414818573,0.00010025,66716.0,66709.0,0.2788652]
[1721414818719,0.002794,66721.0,66709.0,0.2788652]
[1721414818720,0.00010025,66713.0,66712.0,0.07717479]
[1721414818922,0.00010025,66714.0,66712.0,0.20165825]
[1721414819105,0.00010025,66713.0,66712.0,0.07717479]
[1721414819307,0.00010025,66713.0,66712.0,0.20165831]
[1721414819529,0.00010025,66714.0,66712.0,0.20165831]
[1721414819729,0.00010025,66714.0,66713.0,0.12448352]
[1721414821072,0.00010025,66714.0,66713.0,0.13848352]
[1721414821875,0.00010025,66714.0,66713.0,0.13848358]
[1721414821991,0.00010025,66714.0,66713.0,0.014]
[1721414822194,0.00010025,66714.0,66713.0,0.13848366]
[1721414822395,0.00010025,66714.0,66713.0,0.15248366]
[1721414823899,0.14500025,66714.0,66713.0,0.15248366]
[1721414824110,0.16412478,66714.0,66713.0,0.15248366]
[1721414824317,0.16412478,66714.0,66713.0,0.028]
[1721414824318,0.26412478,66714.0,66713.0,0.028]
[1721414824691,0.24500025,66714.0,66713.0,0.028]
[1721414824851,0.26413044,66714.0,66713.0,0.014]
[1721414825048,0.26413044,66714.0,66713.0,0.024]
[1721414825794,0.26413044,66714.0,66699.0,1.2679]
[1721414825795,0.00010025,66700.0,66699.0,1.2679]
[1721414825997,0.00010025,66700.0,66699.0,0.1245157]
[1721414825998,0.0627,66700.0,66699.0,0.1245157]
[1721414826196,0.06280025,66700.0,66699.0,0.1245157]
[1721414827129,0.06280025,66700.0,66699.0,0.1385157]
[1721414827480,0.00010025,66700.0,66699.0,0.1385157]
[1721414827699,0.07771985,66701.0,66699.0,0.1385157]
[1721414827968,0.002794,66700.0,66699.0,0.025]
[1721414828191,0.07771985,66701.0,66699.0,0.14951452]
[1721414828403,0.002794,66700.0,66699.0,0.025]
[1721414828586,0.002794,66700.0,66699.0,0.14951445]
[1721414828739,0.002794,66700.0,66699.0,0.13851445]
[1721414828960,0.002794,66700.0,66699.0,0.14751445]
[1721414829161,0.002794,66700.0,66699.0,0.023]
[1721414829363,0.1,66703.0,66699.0,0.023]
[1721414829571,0.002794,66702.0,66699.0,0.023]
[1721414829796,0.002794,66703.0,66699.0,0.023]
[1721414829995,0.002794,66708.0,66699.0,0.023]
[1721414830195,0.01928097,66707.0,66699.0,0.023]
[1721414830354,0.002794,66706.0,66699.0,0.009]
[1721414830554,0.002794,66706.0,66696.0,0.07717479]
[1721414830759,0.082594,66708.0,66704.0,0.07717479]
[1721414830965,0.082594,66708.0,66699.0,0.011]
[1721414830966,0.0798,66708.0,66699.0,0.011]
[1721414831172,0.002794,66707.0,66700.0,0.15438174]
[1721414832844,0.002794,66707.0,66703.0,0.07717479]
[1721414833048,0.002794,66712.0,66703.0,0.07717479]
[1721414833248,0.0817,66714.0,66703.0,0.07717479]
[1721414833533,0.0220988,66713.0,66703.0,0.07717479]
[1721414833678,0.002794,66713.0,66703.0,0.07717479]
[1721414833883,0.002794,66713.0,66700.0,0.16138174]
[1721414834195,0.002794,66713.0,66701.0,0.12450358]
[1721414834400,0.001,66712.0,66700.0,0.15438174]
[1721414834662,0.0817,66714.0,66700.0,0.15438174]
[1721414834663,0.002794,66711.0,66703.0,0.002]
[1721414834871,0.002794,66713.0,66703.0,0.002]
[1721414835079,0.01925244,66712.0,66703.0,0.002]
[1721414835279,0.002794,66713.0,66700.0,0.15438174]
[1721414835280,0.002794,66711.0,66700.0,0.15438174]
[1721414835577,0.002794,66712.0,66701.0,0.12450393]
[1721414835712,0.002794,66712.0,66700.0,0.15438174]
[1721414835909,0.002794,66712.0,66701.0,0.12450373]
[1721414835910,0.0773,66710.0,66701.0,0.12450373]
[1721414836188,0.002794,66709.0,66696.0,0.4753]
[1721414836403,0.002794,66709.0,66690.0,0.0635]
[1721414836404,0.1384,66704.0,66690.0,0.4753]
[1721414836609,0.0773,66701.0,66690.0,0.4753]
[1721414836761,0.1773,66701.0,66700.0,0.001]
[1721414836958,0.1773,66701.0,66690.0,0.4753]
[1721414836959,0.19654638,66701.0,66690.0,0.4753]
[1721414837198,0.02204038,66700.0,66690.0,0.4753]
[1721414837393,0.002794,66700.0,66685.0,0.07717479]
[1721414837572,0.002794,66700.0,66686.0,0.12453015]
[1721414837771,0.002794,66700.0,66685.0,0.07717479]
[1721414837972,0.01935841,66699.0,66686.0,0.12453023]
[1721414838175,0.002794,66698.0,66685.0,0.07717479]
[1721414838441,0.002794,66698.0,66690.0,0.006]
[1721414838619,0.01935798,66697.0,66690.0,0.006]
[1721414838820,0.002794,66696.0,66690.0,0.006]
[1721414839020,0.327222,66701.0,66690.0,0.006]
[1721414839021,0.002794,66700.0,66690.0,0.006]
[1721414839261,0.01935099,66699.0,66690.0,0.006]
[1721414839449,0.002794,66698.0,66690.0,0.006]
[1721414839662,0.01935099,66697.0,66690.0,0.006]
[1721414839799,0.002794,66696.0,66690.0,0.007]
[1721414840201,0.002794,66700.0,66690.0,0.007]
[1721414840403,0.01935117,66699.0,66690.0,0.007]
[1721414840612,0.002794,66698.0,66690.0,0.007]
[1721414840816,0.002794,66698.0,66690.0,0.018]
[1721414840817,0.225834,66696.0,66690.0,0.018]
[1721414841032,0.12213056,66695.0,66690.0,0.007]
[1721414841269,0.12213056,66695.0,66681.0,0.4753]
[1721414841270,0.01933656,66694.0,66681.0,0.4753]
[1721414841473,0.002794,66693.0,66690.0,0.008]
[1721414841677,0.002794,66693.0,66681.0,0.62968174]
[1721414841882,0.002794,66694.0,66681.0,0.62968174]
[1721414842168,0.01933739,66693.0,66690.0,0.006]
[1721414842408,0.002794,66692.0,66690.0,0.006]
[1721414842613,0.002794,66692.0,66685.0,0.07717479]
[1721414842817,0.1759,66696.0,66685.0,0.07717479]
[1721414842818,0.002794,66695.0,66685.0,0.07717479]
[1721414842990,0.01934617,66694.0,66685.0,0.07717479]
[1721414843197,0.002794,66693.0,66690.0,0.012]
[1721414843346,0.01934617,66692.0,66685.0,0.07717479]
[1721414843547,0.002794,66691.0,66685.0,0.07717479]
[1721414843775,0.002794,66691.0,66685.0,0.09117479]
[1721414843973,0.002794,66695.0,66685.0,0.09117479]
[1721414844181,0.01941168,66694.0,66685.0,0.07717479]
[1721414844387,0.02220582,66693.0,66690.0,0.014]
[1721414844595,0.01941182,66692.0,66690.0,0.014]
[1721414844840,0.002794,66691.0,66685.0,0.09117479]
[1721414845041,0.002794,66691.0,66685.0,0.10517479]
[1721414845200,0.002794,66695.0,66685.0,0.09117479]
[1721414845411,0.01941909,66694.0,66685.0,0.10317479]
[1721414845738,0.002794,66693.0,66685.0,0.10317479]
[1721414846037,0.002794,66691.0,66685.0,0.09117479]
[1721414846238,0.002794,66691.0,66685.0,0.10517479]
[1721414846438,0.002794,66695.0,66685.0,0.09117479]
[1721414846771,0.002794,66693.0,66690.0,0.014]
[1721414846917,0.01940996,66692.0,66690.0,0.014]
[1721414847120,0.01940996,66692.0,66685.0,0.09117479]
[1721414847121,0.002794,66691.0,66685.0,0.09117479]
[1721414847340,0.01940996,66690.0,66686.0,0.12453935]
[1721414847679,0.002794,66689.0,66685.0,0.09117479]
[1721414847991,0.002794,66695.0,66686.0,0.12453955]
[1721414848191,0.01942523,66694.0,66690.0,0.014]
[1721414848400,0.002794,66693.0,66692.0,0.07717479]
[1721414848610,0.1,66696.0,66692.0,0.2017024]
[1721414848871,0.1,66696.0,66693.0,0.12452761]
[1721414849042,0.00962186,66701.0,66694.0,0.12452761]
[1721414849375,0.01938962,66700.0,66695.0,0.12452445]
[1721414849577,0.1,66702.0,66692.0,0.34017479]
[1721414849578,0.01938962,66699.0,66692.0,0.34017479]
[1721414849750,0.1,66702.0,66693.0,0.27890554]
[1721414849751,0.01938962,66698.0,66693.0,0.27890554]
[1721414849983,0.01938962,66697.0,66694.0,0.1245238]
[1721414850167,0.1,66702.0,66695.0,0.1245238]
[1721414850301,0.02214744,66701.0,66696.0,0.1245238]
[1721414850503,0.01935344,66700.0,66695.0,0.007]
[1721414850811,0.01935344,66699.0,66696.0,0.12452395]
[1721414851013,0.01934619,66698.0,66693.0,0.15438174]
[1721414851222,0.01934619,66697.0,66694.0,0.13952397]
[1721414851431,0.01934619,66696.0,66695.0,0.12452397]
[1721414852010,0.1,66702.0,66696.0,0.006]
[1721414852244,0.02214252,66701.0,66697.0,0.12452407]
[1721414852455,0.08274852,66700.0,66685.0,0.13727479]
[1721414852653,0.02214252,66699.0,66686.0,0.27890592]
[1721414852858,0.01934852,66698.0,66695.0,0.01]
[1721414853057,0.002794,66697.0,66696.0,0.12452418]
[1721414853231,0.02214252,66697.0,66696.0,0.12452418]
[1721414853429,0.01934852,66697.0,66696.0,0.12452418]
[1721414854105,0.01918644,66697.0,66696.0,0.12452419]
[1721414854334,0.01918717,66697.0,66696.0,0.12452414]
[1721414854634,0.0634,66700.0,66696.0,0.12452414]
[1721414854635,0.002794,66698.0,66696.0,0.12452414]
[1721414854766,0.01918717,66697.0,66695.0,0.01]
[1721414854969,0.002794,66699.0,66696.0,0.12452409]
[1721414855168,0.01918963,66698.0,66697.0,0.12452409]
[1721414855554,0.01918963,66699.0,66697.0,0.12452409]
[1721414855754,0.01918963,66699.0,66696.0,0.008]
[1721414855755,0.02198363,66698.0,66696.0,0.019]
[1721414855961,0.01918963,66697.0,66696.0,0.011]
[1721414856174,0.01918963,66697.0,66696.0,0.14152404]
[1721414856546,0.01918963,66699.0,66696.0,0.14152404]
[1721414856694,0.002794,66698.0,66697.0,0.12452404]
[1721414856878,0.01918963,66698.0,66697.0,0.12452404]
[1721414857074,0.002794,66698.0,66697.0,0.12452404]
[1721414857282,0.0634,66700.0,66696.0,0.006]
[1721414857489,0.0634,66700.0,66692.0,0.07717479]
[1721414857490,0.01917294,66699.0,66697.0,0.13452404]
[1721414857711,0.002794,66698.0,66697.0,0.01]
[1721414857963,0.01917294,66698.0,66697.0,0.13452404]
[1721414858132,0.02196694,66698.0,66697.0,0.12452404]
[1721414858336,0.01917294,66698.0,66697.0,0.12452404]
[1721414858558,0.02196694,66698.0,66697.0,0.12452404]
[1721414858771,0.01917294,66698.0,66697.0,0.12452404]
[1721414859115,0.002794,66698.0,66697.0,0.18892404]
[1721414859316,0.01917294,66698.0,66697.0,0.19592404]
[1721414859850,0.01917294,66701.0,66697.0,0.19592404]
[1721414860082,0.01917294,66700.0,66698.0,0.12452399]
[1721414860277,0.1,66706.0,66699.0,0.12452399]
[1721414860478,0.0825,66707.0,66700.0,0.12452399]
[1721414860479,0.02201092,66705.0,66700.0,0.12452399]
[1721414860683,0.0764,66712.0,66699.0,0.23155653]
[1721414860684,0.0764,66712.0,66701.0,0.12451661]
[1721414860886,0.02201067,66711.0,66702.0,0.12451661]
[1721414861231,0.02201067,66711.0,66703.0,0.12451661]
[1721414861232,0.01921667,66710.0,66703.0,0.12451661]
[1721414861429,0.01921667,66710.0,66704.0,0.12451661]
[1721414861559,0.02201067,66709.0,66705.0,0.12451661]
[1721414861760,0.1856837,66712.0,66700.0,0.251]
[1721414861761,0.01921667,66708.0,66707.0,0.0655]
[1721414861971,0.01921667,66708.0,66707.0,0.19001661]
[1721414862164,0.083,66721.0,66707.0,0.19001661]
[1721414862349,0.001,66711.0,66708.0,0.12451661]
[1721414862554,0.01902834,66710.0,66709.0,0.12451661]
[1721414862774,0.001,66711.0,66709.0,0.27889835]
[1721414862981,0.001,66711.0,66710.0,0.92320535]
[1721414863191,0.001,66711.0,66710.0,1.40972768]
[1721414863404,0.001,66711.0,66710.0,1.77665717]
[1721414863730,0.001,66711.0,66710.0,2.43201469]
[1721414864017,0.001,66711.0,66710.0,2.43203924]
[1721414864173,0.001,66711.0,66710.0,2.43201758]
[1721414864371,0.00961482,66733.0,66719.0,0.1435]
[1721414864585,0.00961482,66733.0,66720.0,0.27884538]
[1721414864586,0.46304871,66727.0,66720.0,0.27884538]
[1721414864792,0.00961482,66733.0,66721.0,0.12446364]
[1721414864998,0.01895446,66728.0,66722.0,0.27884538]
[1721414865230,0.00961482,66733.0,66723.0,0.12446364]
[1721414865456,0.00961482,66733.0,66724.0,0.12446364]
[1721414865457,0.01890998,66728.0,66724.0,0.12446364]
[1721414865665,0.01890998,66728.0,66725.0,0.12446914]
[1721414865870,0.01890998,66728.0,66722.0,0.15438174]
[1721414866088,0.01890998,66728.0,66723.0,0.12446724]
[1721414866291,0.1,66735.0,66724.0,0.12446724]
[1721414866493,0.1,66735.0,66725.0,0.12446724]
[1721414866721,0.0814,66736.0,66726.0,0.12446724]
[1721414866722,0.1814,66736.0,66726.0,0.12446724]
[1721414867235,0.1814,66736.0,66722.0,0.15938174]
[1721414867236,0.0814,66736.0,66722.0,0.15938174]
[1721414867482,0.002794,66735.0,66723.0,0.12446236]
[1721414867678,0.0814,66736.0,66725.0,0.07717479]
[1721414867877,0.0814,66736.0,66722.0,0.009]
[1721414867878,0.0814,66736.0,66726.0,0.2788441]
[1721414868110,0.00948791,66734.0,66722.0,0.16638174]
[1721414868293,0.00948791,66734.0,66726.0,0.013]
[1721414868601,0.00948791,66734.0,66726.0,0.0128]
[1721414869085,0.0814,66736.0,66723.0,0.01]
[1721414869302,0.0814,66736.0,66722.0,0.15438174]
[1721414869492,0.002794,66735.0,66726.0,0.01]
[1721414870099,0.0814,66736.0,66726.0,0.01]
[1721414870276,0.00930678,66735.0,66726.0,0.01]
[1721414870485,0.01210078,66735.0,66726.0,0.01]
[1721414870690,0.01210078,66735.0,66728.0,0.07717479]
[1721414870847,0.0659,66741.0,66728.0,0.35600318]
[1721414871050,0.1,66740.0,66728.0,0.43640318]
[1721414871258,0.1,66741.0,66728.0,0.43640318]
[1721414871902,0.1,66741.0,66728.0,0.58626518]
[1721414872103,0.10837,66744.0,66728.0,0.65226518]
[1721414872378,0.00837,66744.0,66728.0,0.67626518]
[1721414872598,0.01798214,66744.0,66728.0,0.67626518]
[1721414872807,0.01798214,66744.0,66728.0,0.66626518]
[1721414873320,0.01798214,66744.0,66728.0,1.33871318]
[1721414873321,0.00837,66744.0,66728.0,1.33871318]
[1721414873523,0.00837,66744.0,66728.0,1.93841891]
[1721414873724,0.00284,66729.0,66728.0,1.93841891]
[1721414874056,0.00284,66729.0,66728.0,1.87441891]
[1721414874272,0.00284,66729.0,66728.0,1.93841891]
[1721414874484,0.00284,66729.0,66728.0,1.95241891]
[1721414874646,0.00284,66729.0,66728.0,1.92441891]
[1721414875211,0.00284,66729.0,66728.0,1.95241891]
[1721414876311,0.00837,66744.0,66737.0,1.24419]
[1721414876484,0.00837,66744.0,66737.0,1.83190012]
[1721414876721,0.00837,66744.0,66737.0,1.78190012]
[1721414876926,0.00837,66744.0,66737.0,1.83187991]
[1721414877127,0.00837,66744.0,66737.0,1.83188008]
[1721414877327,0.00837,66744.0,66737.0,1.65747174]
[1721414877441,0.00837,66744.0,66737.0,2.08188118]
[1721414878216,0.00837,66744.0,66737.0,2.09588118]
[1721414878863,0.00837,66744.0,66737.0,2.10988118]
[1721414879066,0.00837,66744.0,66737.0,2.09588118]
[1721414879273,0.00837,66744.0,66737.0,2.10988118]
[1721414879494,0.00837,66744.0,66737.0,2.12787008]
[1721414879638,0.00837,66744.0,66737.0,1.98547174]
[1721414879838,0.00837,66744.0,66737.0,2.12786929]
[1721414880045,0.00837,66744.0,66737.0,2.12786916]
[1721414880270,0.00837,66744.0,66737.0,2.11386916]
[1721414880476,0.00837,66744.0,66737.0,2.08187882]
[1721414880645,0.00837,66744.0,66738.0,1.298476]
[1721414880853,0.00837,66744.0,66738.0,1.87445082]
[1721414881049,0.00837,66744.0,66738.0,2.17412982]
[1721414881700,0.00837,66744.0,66738.0,2.42412982]
[1721414881832,0.00837,66744.0,66738.0,2.43812982]
[1721414882034,0.00837,66744.0,66738.0,2.38812982]
[1721414882256,0.00837,66744.0,66738.0,2.00087545]
[1721414882460,0.00837,66744.0,66738.0,1.98685981]
[1721414883439,0.00837,66744.0,66738.0,2.10731348]
[1721414883644,0.00837,66744.0,66738.0,2.0640346]
[1721414883784,0.00837,66744.0,66738.0,2.3637136]
[1721414883991,0.00837,66744.0,66738.0,2.3917136]
[1721414884192,0.00837,66744.0,66743.0,1.240096]
[1721414884424,0.00837,66744.0,66743.0,1.96437981]
[1721414884624,0.00837,66744.0,66743.0,2.00765869]
[1721414884879,0.00837,66744.0,66743.0,1.96437981]
[1721414885608,0.00837,66744.0,66743.0,2.10396849]
[1721414885809,0.00837,66744.0,66743.0,2.24236232]
[1721414886019,0.00837,66744.0,66743.0,1.93137774]
[1721414886229,0.01036,66749.0,66748.0,0.799085]
[1721414886446,0.01036,66749.0,66748.0,1.37163604]
[1721414887063,0.01036,66749.0,66748.0,0.54955104]
[1721414887497,0.01036,66749.0,66748.0,0.59497557]
[1721414887689,0.01036,66749.0,66748.0,0.60897557]
[1721414888292,0.01036,66749.0,66748.0,0.78157979]
[1721414888520,0.01036,66749.0,66748.0,0.80957979]
[1721414888719,0.01036,66749.0,66748.0,0.67118377]
[1721414888893,0.01036,66749.0,66748.0,0.79558512]
[1721414889105,0.01036,66749.0,66748.0,0.80958512]
[1721414889694,0.01036,66749.0,66748.0,0.95940212]
[1721414889922,0.01036,66749.0,66748.0,1.66207012]
[1721414890341,0.01036,66749.0,66748.0,1.36243612]
[1721414890541,0.01036,66749.0,66748.0,0.91298512]
[1721414891103,9e-05,66762.0,66748.0,0.91298512]
[1721414891464,9e-05,66762.0,66756.0,0.01798446]
[1721414891661,9e-05,66762.0,66757.0,0.48336958]
[1721414891860,9e-05,66762.0,66748.0,0.4476]
[1721414891861,9e-05,66762.0,66758.0,0.12440135]
[1721414892114,0.1456,66759.0,66758.0,0.12440135]
[1721414893283,0.1456,66759.0,66758.0,0.13840135]
[1721414894331,0.1456,66759.0,66758.0,0.15240135]
[1721414894774,0.1456,66759.0,66758.0,0.12440135]
[1721414895072,0.1456,66759.0,66758.0,0.15140135]
[1721414895483,0.1456,66759.0,66758.0,0.15140891]
[1721414895636,0.1456,66759.0,66758.0,0.35600561]
[1721414895847,0.1456,66759.0,66758.0,0.027]
[1721414896044,0.1456,66759.0,66758.0,0.35600538]
[1721414896244,0.1456,66759.0,66758.0,0.33802227]
[1721414898495,0.1456,66759.0,66758.0,0.027]
[1721414898694,0.1456,66759.0,66758.0,0.52463556]
[1721414898897,0.295392,66759.0,66758.0,0.3380222]
[1721414899103,0.71385183,66759.0,66758.0,0.35600518]
[1721414899318,0.41426683,66759.0,66758.0,0.35600563]
[1721414899491,0.71385183,66759.0,66758.0,0.35600563]
[1721414899867,0.41426683,66759.0,66758.0,0.35600563]
[1721414900288,0.41426683,66759.0,66758.0,0.3380222]
[1721414901424,0.26447483,66759.0,66758.0,0.3380222]
[1721414901898,0.26447483,66759.0,66758.0,0.33803992]
[1721414901899,0.2645189,66759.0,66758.0,0.33803992]
[1721414902500,0.2645189,66759.0,66758.0,0.21362427]
[1721414902501,0.26451898,66759.0,66758.0,0.21362427]
[1721414902780,0.26451898,66759.0,66758.0,0.33804045]
[1721414903940,0.26451884,66759.0,66758.0,0.027]
[1721414904146,0.26451884,66759.0,66758.0,0.33804045]
[1721414905121,0.2740222,66759.0,66758.0,0.33804045]
[1721414905321,0.27401552,66759.0,66758.0,0.33804045]
[1721414906564,0.27485552,66759.0,66758.0,0.33804045]
[1721414907131,0.27485552,66759.0,66758.0,0.35602448]
[1721414908132,1.6135683,66759.0,66758.0,0.15141618]
[1721414908334,0.891672,66749.0,66748.0,0.25018034]
[1721414908538,0.891672,66749.0,66748.0,0.00018034]
[1721414908539,0.991672,66749.0,66748.0,0.00018034]
[1721414908834,1.04638347,66749.0,66748.0,0.00018034]
[1721414909064,1.04661713,66749.0,66748.0,0.00018034]
[1721414909542,0.2616368,66749.0,66748.0,0.00018034]
[1721414909689,0.1190368,66749.0,66748.0,0.00018034]
[1721414910068,0.0190368,66749.0,66748.0,0.00018034]
[1721414910271,0.18,66756.0,66748.0,0.00018034]